[Event "*** Titled Tuesday Blitz"]
[Site "Chess.com"]
[Date "2020.01.07"]
[Round "9"]
[White "ChessBitl"]
[Black "TwentyHourADay"]
[Result "1-0"]
[WhiteElo "2380"]
[BlackElo "2236"]
[TimeControl "180+2"]
[EndTime "15:07:58 PST"]
[Termination "ChessBitl won by resignation"]

1. e4 {[%clk 0:02:59.1]} 1... g6 {[%clk 0:02:30.4]} 2. d4 {[%clk 0:02:59.3]}
2... Bg7 {[%clk 0:02:31.2]} 3. c4 {[%clk 0:03:00.8]} 3... d6 {[%clk 0:02:32]} 4.
Nc3 {[%clk 0:03:02]} 4... Nd7 {[%clk 0:02:33.4]} 5. Be3 {[%clk 0:03:01.4]} 5...
e5 {[%clk 0:02:34.6]} 6. d5 {[%clk 0:03:01.9]} 6... a5 {[%clk 0:02:35.6]} 7. Bd3
{[%clk 0:03:02]} 7... Nc5 {[%clk 0:02:36.8]} 8. Bc2 {[%clk 0:03:02.2]} 8... Nf6
{[%clk 0:02:34.3]} 9. f3 {[%clk 0:03:02.3]} 9... Nh5 {[%clk 0:02:35.1]} 10. Nge2
{[%clk 0:03:02.4]} 10... b6 {[%clk 0:02:35.1]} 11. Qd2 {[%clk 0:03:02.8]} 11...
Qh4+ {[%clk 0:02:27.9]} 12. g3 {[%clk 0:03:01.1]} 12... Qe7 {[%clk 0:02:27.8]}
13. O-O-O {[%clk 0:03:01.5]} 13... Ba6 {[%clk 0:02:22.3]} 14. Nb5 {[%clk
0:02:58.1]} 14... Bxb5 {[%clk 0:02:12.9]} 15. cxb5 {[%clk 0:02:58.7]} 15... Nf6
{[%clk 0:02:08.7]} 16. Kb1 {[%clk 0:02:56.9]} 16... Nfd7 {[%clk 0:01:59.8]} 17.
g4 {[%clk 0:02:57]} 17... h6 {[%clk 0:01:59.5]} 18. h4 {[%clk 0:02:57.5]} 18...
O-O-O {[%clk 0:01:35.8]} 19. a3 {[%clk 0:02:49.4]} 19... Qf6 {[%clk 0:01:27.4]}
20. Rdf1 {[%clk 0:02:45.3]} 20... Qe7 {[%clk 0:01:09.6]} 21. b4 {[%clk
0:02:44.4]} 21... axb4 {[%clk 0:01:08.7]} 22. axb4 {[%clk 0:02:45.1]} 22... Nb7
{[%clk 0:01:07.5]} 23. Kb2 {[%clk 0:02:46.4]} 23... f5 {[%clk 0:00:36.8]} 24. h5
{[%clk 0:02:37.9]} 24... f4 {[%clk 0:00:35.1]} 25. Bf2 {[%clk 0:02:37.2]} 25...
g5 {[%clk 0:00:36.2]} 26. Rc1 {[%clk 0:02:37.5]} 26... Rde8 {[%clk 0:00:16.5]}
27. Ra1 {[%clk 0:02:35.7]} 27... Ndc5 {[%clk 0:00:15]} 28. bxc5 {[%clk
0:02:34.3]} 28... dxc5 {[%clk 0:00:16.2]} 29. Nc3 {[%clk 0:02:07.6]} 29... Nd6
{[%clk 0:00:15.3]} 30. Bd3 {[%clk 0:02:06.4]} 30... Kb7 {[%clk 0:00:16.6]} 31.
Kc2 {[%clk 0:02:04.9]} 31... c4 {[%clk 0:00:15.9]} 32. Be2 {[%clk 0:02:05.6]}
32... Ra8 {[%clk 0:00:16.9]} 33. Rhb1 {[%clk 0:01:56.4]} 33... Rhb8 {[%clk
0:00:16.9]} 34. Qc1 {[%clk 0:01:56.1]} 34... Bf8 {[%clk 0:00:16.8]} 35. Qb2
{[%clk 0:01:53.2]} 35... Rxa1 {[%clk 0:00:15.5]} 36. Rxa1 {[%clk 0:01:54.1]}
36... Ra8 {[%clk 0:00:16.8]} 37. Rxa8 {[%clk 0:01:54.5]} 37... Kxa8 {[%clk
0:00:17.8]} 38. Qa2+ {[%clk 0:01:55.4]} 38... Kb8 {[%clk 0:00:17.3]} 39. Bxc4
{[%clk 0:01:56.4]} 39... Nb7 {[%clk 0:00:16]} 40. Bd3 {[%clk 0:01:48.4]} 40...
Qe8 {[%clk 0:00:13.9]} 41. d6 {[%clk 0:01:40.8]} 41... Bxd6 {[%clk 0:00:12.5]}
42. Nd5 {[%clk 0:01:40.1]} 42... Bc5 {[%clk 0:00:08.8]} 43. Bxc5 {[%clk
0:01:37]} 43... Nxc5 {[%clk 0:00:10.7]} 44. Qb2 {[%clk 0:01:34.3]} 44... Qd7
{[%clk 0:00:10.2]} 45. Be2 {[%clk 0:01:34.8]} 45... Qd6 {[%clk 0:00:09.8]} 46.
Qc3 {[%clk 0:01:26.4]} 46... Ne6 {[%clk 0:00:09.4]} 47. Kd2 {[%clk 0:01:14.2]}
47... Nd4 {[%clk 0:00:08.5]} 48. Bd1 {[%clk 0:01:10]} 48... Nxb5 {[%clk
0:00:07.6]} 49. Qb4 {[%clk 0:01:06.4]} 49... Qd7 {[%clk 0:00:02.2]} 50. Ba4
{[%clk 0:01:05.9]} 50... c6 {[%clk 0:00:03.2]} 1-0

[Event "*** Titled Tuesday Blitz"]
[Site "Chess.com"]
[Date "2020.01.07"]
[Round "9"]
[White "JustaTrickstar"]
[Black "volcanoexplorer"]
[Result "0-1"]
[WhiteElo "2727"]
[BlackElo "2573"]
[TimeControl "180+2"]
[EndTime "15:08:02 PST"]
[Termination "volcanoexplorer won by checkmate"]

1. c4 {[%clk 0:03:01.9]} 1... e5 {[%clk 0:03:00.7]} 2. Nc3 {[%clk 0:03:03.2]}
2... Nc6 {[%clk 0:03:02]} 3. Nf3 {[%clk 0:03:03.5]} 3... Nf6 {[%clk 0:03:03.3]}
4. e4 {[%clk 0:03:04.2]} 4... g6 {[%clk 0:03:02.9]} 5. d4 {[%clk 0:02:57.6]}
5... exd4 {[%clk 0:02:26.3]} 6. Nxd4 {[%clk 0:02:59.5]} 6... d6 {[%clk
0:02:27.5]} 7. Nxc6 {[%clk 0:02:57.8]} 7... bxc6 {[%clk 0:02:29.4]} 8. Bd3
{[%clk 0:02:58.9]} 8... Bg7 {[%clk 0:02:29]} 9. O-O {[%clk 0:02:59.8]} 9... O-O
{[%clk 0:02:29.9]} 10. h3 {[%clk 0:02:54.4]} 10... Be6 {[%clk 0:02:23.9]} 11.
Bf4 {[%clk 0:02:52.1]} 11... d5 {[%clk 0:02:18.9]} 12. Qc2 {[%clk 0:02:49.8]}
12... dxc4 {[%clk 0:01:40]} 13. Be2 {[%clk 0:02:47.3]} 13... Nd7 {[%clk
0:01:40.3]} 14. Rfd1 {[%clk 0:02:40.6]} 14... Qh4 {[%clk 0:01:28.1]} 15. Bxc7
{[%clk 0:02:39.6]} 15... Ne5 {[%clk 0:01:23.3]} 16. Bf1 {[%clk 0:02:30.9]} 16...
Qg5 {[%clk 0:01:02.7]} 17. Kh1 {[%clk 0:02:01.1]} 17... Rfc8 {[%clk 0:00:58.5]}
18. Bd6 {[%clk 0:02:00.3]} 18... Rd8 {[%clk 0:00:59.8]} 19. Na4 {[%clk
0:02:00.2]} 19... Qh5 {[%clk 0:00:53.8]} 20. Nc5 {[%clk 0:01:27.6]} 20... Bg4
{[%clk 0:00:18]} 21. Rd2 {[%clk 0:01:09.1]} 21... Nf3 {[%clk 0:00:19.1]} 22.
Rad1 {[%clk 0:00:32.2]} 22... Nxd2 {[%clk 0:00:15.6]} 23. Rxd2 {[%clk
0:00:33.2]} 23... Rxd6 {[%clk 0:00:13.5]} 24. Rxd6 {[%clk 0:00:33.3]} 24... Qxc5
{[%clk 0:00:14.6]} 25. Rd2 {[%clk 0:00:27.1]} 25... Be6 {[%clk 0:00:15.3]} 26.
f4 {[%clk 0:00:26.6]} 26... Re8 {[%clk 0:00:14.9]} 27. Rf2 {[%clk 0:00:20.9]}
27... Bd4 {[%clk 0:00:15.7]} 28. Rf3 {[%clk 0:00:22]} 28... Kh8 {[%clk
0:00:12.4]} 29. a4 {[%clk 0:00:12.4]} 29... a5 {[%clk 0:00:12.5]} 30. Kh2 {[%clk
0:00:13.2]} 30... Bg7 {[%clk 0:00:08.9]} 31. e5 {[%clk 0:00:07.8]} 31... Bd5
{[%clk 0:00:08.8]} 32. Rc3 {[%clk 0:00:09]} 32... Qd4 {[%clk 0:00:08.7]} 33. Qc1
{[%clk 0:00:09.8]} 33... Bh6 {[%clk 0:00:09.1]} 34. g3 {[%clk 0:00:10]} 34...
Rxe5 {[%clk 0:00:10.5]} 35. Rc2 {[%clk 0:00:07.2]} 35... Re8 {[%clk 0:00:09.8]}
36. Bg2 {[%clk 0:00:06.3]} 36... Bg7 {[%clk 0:00:09.9]} 37. Bf1 {[%clk 0:00:04]}
37... Qe4 {[%clk 0:00:10.7]} 38. Bxc4 {[%clk 0:00:04]} 38... Bxc4 {[%clk
0:00:09.2]} 39. Rxc4 {[%clk 0:00:05.9]} 39... Qe2+ {[%clk 0:00:10.9]} 40. Kh1
{[%clk 0:00:06.8]} 40... Qf3+ {[%clk 0:00:10.9]} 41. Kg1 {[%clk 0:00:07.9]}
41... Re2 {[%clk 0:00:11.7]} 42. Qc3 {[%clk 0:00:03.2]} 42... Qg2# {[%clk
0:00:12.7]} 0-1

[Event "*** Titled Tuesday Blitz"]
[Site "Chess.com"]
[Date "2020.01.07"]
[Round "9"]
[White "13MiRacLe"]
[Black "viktorskliarov"]
[Result "0-1"]
[WhiteElo "2700"]
[BlackElo "2636"]
[TimeControl "180+2"]
[EndTime "15:08:19 PST"]
[Termination "viktorskliarov won by checkmate"]

1. e4 {[%clk 0:03:01.9]} 1... c5 {[%clk 0:02:56.5]} 2. Nf3 {[%clk 0:02:59.7]}
2... Nc6 {[%clk 0:02:57.8]} 3. d4 {[%clk 0:03:01.2]} 3... cxd4 {[%clk
0:02:59.7]} 4. Nxd4 {[%clk 0:03:03.1]} 4... Nf6 {[%clk 0:03:01.3]} 5. Nc3 {[%clk
0:03:04.6]} 5... e5 {[%clk 0:03:02.4]} 6. Ndb5 {[%clk 0:03:05.8]} 6... d6 {[%clk
0:03:03.4]} 7. Bg5 {[%clk 0:03:07.1]} 7... a6 {[%clk 0:03:04.6]} 8. Na3 {[%clk
0:03:08.7]} 8... b5 {[%clk 0:03:05.6]} 9. Bxf6 {[%clk 0:03:10.3]} 9... gxf6
{[%clk 0:03:06.3]} 10. Nd5 {[%clk 0:03:11.9]} 10... f5 {[%clk 0:03:07.7]} 11. g3
{[%clk 0:03:12.8]} 11... Bg7 {[%clk 0:03:01.3]} 12. exf5 {[%clk 0:03:08.5]}
12... Bxf5 {[%clk 0:03:01.4]} 13. Bg2 {[%clk 0:03:10]} 13... Rc8 {[%clk
0:02:51.6]} 14. c3 {[%clk 0:03:10.2]} 14... O-O {[%clk 0:02:51.6]} 15. Nc2
{[%clk 0:03:11.3]} 15... Be6 {[%clk 0:02:50.1]} 16. O-O {[%clk 0:03:10]} 16...
Ne7 {[%clk 0:02:49.8]} 17. Nxe7+ {[%clk 0:03:05]} 17... Qxe7 {[%clk 0:02:50.4]}
18. a4 {[%clk 0:02:57.2]} 18... Rfd8 {[%clk 0:02:24.6]} 19. axb5 {[%clk
0:02:57.7]} 19... axb5 {[%clk 0:02:25.7]} 20. Nb4 {[%clk 0:02:59.2]} 20... d5
{[%clk 0:02:17.8]} 21. Qd3 {[%clk 0:02:47]} 21... Qc5 {[%clk 0:02:00.4]} 22. Ra5
{[%clk 0:02:40.9]} 22... d4 {[%clk 0:01:49.3]} 23. Rxb5 {[%clk 0:02:24]} 23...
Qc4 {[%clk 0:01:50.3]} 24. Rb6 {[%clk 0:01:43.6]} 24... Qxd3 {[%clk 0:01:36.9]}
25. Nxd3 {[%clk 0:01:45.5]} 25... dxc3 {[%clk 0:01:38.1]} 26. Nc1 {[%clk
0:01:30.1]} 26... Bc4 {[%clk 0:00:40.9]} 27. Re1 {[%clk 0:00:52.5]} 27... c2
{[%clk 0:00:41.6]} 28. Bf3 {[%clk 0:00:54]} 28... e4 {[%clk 0:00:26.6]} 29. Bg4
{[%clk 0:00:49.6]} 29... f5 {[%clk 0:00:27.4]} 30. Bh5 {[%clk 0:00:39.3]} 30...
Rc7 {[%clk 0:00:20.5]} 31. Rb4 {[%clk 0:00:27.1]} 31... Bf8 {[%clk 0:00:19.4]}
32. Ra4 {[%clk 0:00:25.7]} 32... Bd3 {[%clk 0:00:15.3]} 33. Kg2 {[%clk
0:00:16.2]} 33... Rb8 {[%clk 0:00:15.9]} 34. b3 {[%clk 0:00:16.5]} 34... Bb4
{[%clk 0:00:16.5]} 35. Rg1 {[%clk 0:00:18]} 35... Bd2 {[%clk 0:00:17.5]} 36. Ra1
{[%clk 0:00:09.8]} 36... Bxc1 {[%clk 0:00:17.8]} 37. Rgxc1 {[%clk 0:00:09.5]}
37... Rxb3 {[%clk 0:00:18.7]} 38. f3 {[%clk 0:00:09.2]} 38... e3 {[%clk
0:00:18.4]} 39. f4 {[%clk 0:00:08.3]} 39... Rb1 {[%clk 0:00:19]} 40. Raxb1
{[%clk 0:00:09]} 40... cxb1=Q {[%clk 0:00:20]} 41. Rxc7 {[%clk 0:00:10.9]} 41...
Qf1# {[%clk 0:00:19.9]} 0-1

[Event "*** Titled Tuesday Blitz"]
[Site "Chess.com"]
[Date "2020.01.07"]
[Round "9"]
[White "Fandorin779"]
[Black "yoolund"]
[Result "0-1"]
[WhiteElo "2329"]
[BlackElo "2500"]
[TimeControl "180+2"]
[EndTime "15:08:22 PST"]
[Termination "yoolund won by resignation"]

1. e4 {[%clk 0:03:01.9]} 1... g6 {[%clk 0:03:00.2]} 2. d4 {[%clk 0:03:02.5]}
2... Bg7 {[%clk 0:03:01.2]} 3. Nc3 {[%clk 0:03:04.2]} 3... d6 {[%clk 0:03:02.3]}
4. Be3 {[%clk 0:03:05.8]} 4... a6 {[%clk 0:03:02.9]} 5. Qd2 {[%clk 0:03:05.6]}
5... b5 {[%clk 0:03:02.8]} 6. f3 {[%clk 0:03:06.7]} 6... Nd7 {[%clk 0:03:02.5]}
7. g4 {[%clk 0:03:06.3]} 7... Bb7 {[%clk 0:03:02.5]} 8. g5 {[%clk 0:03:04]} 8...
c5 {[%clk 0:03:03.2]} 9. Nce2 {[%clk 0:03:00.7]} 9... h6 {[%clk 0:02:37.5]} 10.
gxh6 {[%clk 0:02:53.8]} 10... Bxh6 {[%clk 0:02:38.3]} 11. Bxh6 {[%clk
0:02:40.8]} 11... Rxh6 {[%clk 0:02:36.9]} 12. Bg2 {[%clk 0:02:41.5]} 12... cxd4
{[%clk 0:02:31.5]} 13. Nxd4 {[%clk 0:02:39.5]} 13... Ne5 {[%clk 0:02:22.5]} 14.
b3 {[%clk 0:02:37.1]} 14... Qb6 {[%clk 0:02:11.9]} 15. Nge2 {[%clk 0:02:23.1]}
15... O-O-O {[%clk 0:02:00.3]} 16. O-O-O {[%clk 0:02:14.5]} 16... Rh8 {[%clk
0:01:55.8]} 17. f4 {[%clk 0:02:08.6]} 17... Nc6 {[%clk 0:01:46.3]} 18. Nxc6
{[%clk 0:02:04.4]} 18... Qxc6 {[%clk 0:01:33.3]} 19. Nd4 {[%clk 0:01:50.7]}
19... Qc5 {[%clk 0:01:28.8]} 20. e5 {[%clk 0:01:37.9]} 20... dxe5 {[%clk
0:01:06.2]} 21. Bxb7+ {[%clk 0:01:20.1]} 21... Kxb7 {[%clk 0:01:08.1]} 22. fxe5
{[%clk 0:01:21]} 22... Nh6 {[%clk 0:00:38.1]} 23. Kb1 {[%clk 0:01:14.3]} 23...
Kb6 {[%clk 0:00:36.9]} 24. e6 {[%clk 0:00:56.1]} 24... Nf5 {[%clk 0:00:30.9]}
25. c3 {[%clk 0:00:46.7]} 25... Nxd4 {[%clk 0:00:30.5]} 26. cxd4 {[%clk
0:00:46.1]} 26... Qf5+ {[%clk 0:00:31.3]} 27. Kb2 {[%clk 0:00:43.3]} 27... fxe6
{[%clk 0:00:30.3]} 28. Rhf1 {[%clk 0:00:40.4]} 28... Qd5 {[%clk 0:00:29.1]} 29.
Rfe1 {[%clk 0:00:28]} 29... Rh4 {[%clk 0:00:22.1]} 30. Qf2 {[%clk 0:00:15.3]}
30... g5 {[%clk 0:00:16.5]} 31. Re5 {[%clk 0:00:12.7]} 31... Rf4 {[%clk
0:00:07.6]} 32. Qg1 {[%clk 0:00:07.8]} 32... Qf3 {[%clk 0:00:05.9]} 33. d5+
{[%clk 0:00:08]} 33... Kb7 {[%clk 0:00:07.3]} 34. Rxe6 {[%clk 0:00:07.1]} 34...
Qf2+ {[%clk 0:00:08.2]} 35. Kb1 {[%clk 0:00:04.6]} 35... Qxg1 {[%clk 0:00:07.8]}
36. Rxg1 {[%clk 0:00:06.5]} 36... Rxd5 {[%clk 0:00:07.7]} 37. Rxe7+ {[%clk
0:00:08]} 37... Kb6 {[%clk 0:00:09.2]} 38. Rg7 {[%clk 0:00:05.8]} 38... Rf2
{[%clk 0:00:08]} 39. R7xg5 {[%clk 0:00:03.3]} 39... Rdd2 {[%clk 0:00:08.9]} 40.
h4 {[%clk 0:00:03.7]} 40... Rb2+ {[%clk 0:00:08.8]} 41. Kc1 {[%clk 0:00:03.3]}
41... Rxa2 {[%clk 0:00:10.7]} 42. h5 {[%clk 0:00:03.9]} 0-1

[Event "*** Titled Tuesday Blitz"]
[Site "Chess.com"]
[Date "2020.01.07"]
[Round "9"]
[White "W_Amadeus"]
[Black "Borsuk_Konstantin"]
[Result "0-1"]
[WhiteElo "2644"]
[BlackElo "2504"]
[TimeControl "180+2"]
[EndTime "15:08:38 PST"]
[Termination "Borsuk_Konstantin won by resignation"]

1. e4 {[%clk 0:03:01.9]} 1... e6 {[%clk 0:03:00.5]} 2. d4 {[%clk 0:03:02.3]}
2... d5 {[%clk 0:03:02.4]} 3. Nc3 {[%clk 0:03:03.9]} 3... Bb4 {[%clk 0:03:03]}
4. e5 {[%clk 0:03:05.3]} 4... b6 {[%clk 0:03:04]} 5. a3 {[%clk 0:02:55.2]} 5...
Bf8 {[%clk 0:03:04.7]} 6. Nf3 {[%clk 0:02:56.4]} 6... Ba6 {[%clk 0:03:04.6]} 7.
Bxa6 {[%clk 0:02:55]} 7... Nxa6 {[%clk 0:03:06.5]} 8. O-O {[%clk 0:02:56.3]}
8... c6 {[%clk 0:03:05.1]} 9. Ne2 {[%clk 0:02:53.5]} 9... Nc7 {[%clk 0:03:03.7]}
10. h4 {[%clk 0:02:38.5]} 10... Ne7 {[%clk 0:02:58.8]} 11. g3 {[%clk 0:02:29.7]}
11... h6 {[%clk 0:02:48.5]} 12. Kg2 {[%clk 0:02:26.5]} 12... Qd7 {[%clk
0:02:46.5]} 13. a4 {[%clk 0:02:25.5]} 13... g6 {[%clk 0:02:44.4]} 14. a5 {[%clk
0:02:25.4]} 14... Bg7 {[%clk 0:02:42.7]} 15. axb6 {[%clk 0:02:25.3]} 15... axb6
{[%clk 0:02:43.6]} 16. Rxa8+ {[%clk 0:02:26.9]} 16... Nxa8 {[%clk 0:02:45.5]}
17. b3 {[%clk 0:02:13]} 17... Qa7 {[%clk 0:02:39]} 18. Bd2 {[%clk 0:02:12.6]}
18... Nc7 {[%clk 0:02:38]} 19. h5 {[%clk 0:00:59.1]} 19... c5 {[%clk 0:02:32.2]}
20. hxg6 {[%clk 0:00:54.9]} 20... fxg6 {[%clk 0:02:33.4]} 21. Nf4 {[%clk
0:00:53.9]} 21... Rf8 {[%clk 0:02:15.8]} 22. Be3 {[%clk 0:00:46]} 22... g5
{[%clk 0:01:58.6]} 23. Nh5 {[%clk 0:00:46.2]} 23... Bh8 {[%clk 0:01:59.9]} 24.
Qd3 {[%clk 0:00:32.7]} 24... Rf7 {[%clk 0:01:56.2]} 25. Nf6+ {[%clk 0:00:19]}
25... Kd8 {[%clk 0:01:43.5]} 26. Rh1 {[%clk 0:00:18.3]} 26... Bxf6 {[%clk
0:01:43.2]} 27. exf6 {[%clk 0:00:19.4]} 27... Rxf6 {[%clk 0:01:42.9]} 28. Qh7
{[%clk 0:00:18]} 28... Ne8 {[%clk 0:00:40.9]} 29. Rxh6 {[%clk 0:00:11.4]} 29...
Rxh6 {[%clk 0:00:39]} 30. Qxh6 {[%clk 0:00:13.3]} 30... g4 {[%clk 0:00:37.1]}
31. Ne5 {[%clk 0:00:14.2]} 31... cxd4 {[%clk 0:00:29.7]} 32. Nc6+ {[%clk
0:00:15]} 32... Nxc6 {[%clk 0:00:30.1]} 33. Bg5+ {[%clk 0:00:15]} 33... Kc8
{[%clk 0:00:26.5]} 34. Qxe6+ {[%clk 0:00:14]} 34... Qd7 {[%clk 0:00:28.1]} 35.
Qe2 {[%clk 0:00:14]} 35... Kb7 {[%clk 0:00:28.3]} 36. Bf4 {[%clk 0:00:13.9]}
36... Nf6 {[%clk 0:00:28]} 37. Qd3 {[%clk 0:00:06.8]} 37... Ne4 {[%clk
0:00:28.6]} 38. b4 {[%clk 0:00:07.4]} 38... Nxb4 {[%clk 0:00:24.9]} 39. Qxd4
{[%clk 0:00:08.6]} 39... Nxc2 {[%clk 0:00:21]} 40. Qb2 {[%clk 0:00:09.7]} 40...
Ne1+ {[%clk 0:00:14.4]} 41. Kf1 {[%clk 0:00:10.3]} 41... Nd3 {[%clk 0:00:15.4]}
42. Qd4 {[%clk 0:00:11.6]} 42... Nxf4 {[%clk 0:00:11.9]} 43. gxf4 {[%clk
0:00:12.3]} 43... Qf5 {[%clk 0:00:07]} 44. Qg7+ {[%clk 0:00:10.1]} 44... Ka6
{[%clk 0:00:07.4]} 45. Qa1+ {[%clk 0:00:10.5]} 45... Kb7 {[%clk 0:00:08.4]} 46.
Qg7+ {[%clk 0:00:10.1]} 46... Kc6 {[%clk 0:00:09.6]} 47. Qh6+ {[%clk 0:00:11.3]}
47... Nd6 {[%clk 0:00:10.5]} 48. Kg1 {[%clk 0:00:09.1]} 48... d4 {[%clk
0:00:11.4]} 49. Qh8 {[%clk 0:00:09.4]} 49... Qxf4 {[%clk 0:00:12.2]} 0-1

[Event "*** Titled Tuesday Blitz"]
[Site "Chess.com"]
[Date "2020.01.07"]
[Round "9"]
[White "Rainbow2014"]
[Black "Rhinos1"]
[Result "1/2-1/2"]
[WhiteElo "2266"]
[BlackElo "2145"]
[TimeControl "180+2"]
[EndTime "15:08:41 PST"]
[Termination "Game drawn by repetition"]

1. e4 {[%clk 0:03:01.9]} 1... e5 {[%clk 0:02:57.5]} 2. Nf3 {[%clk 0:03:02]} 2...
Nc6 {[%clk 0:02:58]} 3. Bb5 {[%clk 0:03:02.1]} 3... a6 {[%clk 0:02:58.6]} 4. Ba4
{[%clk 0:03:02.8]} 4... d6 {[%clk 0:02:58.4]} 5. O-O {[%clk 0:03:01.5]} 5... Bd7
{[%clk 0:02:59.2]} 6. c3 {[%clk 0:03:02.1]} 6... Nge7 {[%clk 0:03:00.2]} 7. d4
{[%clk 0:03:02.5]} 7... Ng6 {[%clk 0:03:01.2]} 8. d5 {[%clk 0:02:58.5]} 8... Nb8
{[%clk 0:03:01.4]} 9. c4 {[%clk 0:02:57.5]} 9... Be7 {[%clk 0:03:01.1]} 10. Nc3
{[%clk 0:02:58]} 10... O-O {[%clk 0:03:02.3]} 11. Bxd7 {[%clk 0:02:58.2]} 11...
Nxd7 {[%clk 0:03:02.9]} 12. Be3 {[%clk 0:02:57.5]} 12... f5 {[%clk 0:03:02.8]}
13. exf5 {[%clk 0:02:58.4]} 13... Rxf5 {[%clk 0:03:04.7]} 14. Ne4 {[%clk
0:02:59.5]} 14... Rf8 {[%clk 0:02:46.6]} 15. Nfd2 {[%clk 0:02:51.9]} 15... Nf4
{[%clk 0:02:46.3]} 16. b4 {[%clk 0:02:47.1]} 16... Qe8 {[%clk 0:02:31.8]} 17. c5
{[%clk 0:02:32.2]} 17... Qg6 {[%clk 0:02:25.4]} 18. Bxf4 {[%clk 0:02:33]} 18...
Rxf4 {[%clk 0:02:23.3]} 19. Re1 {[%clk 0:02:32]} 19... Raf8 {[%clk 0:02:21.7]}
20. c6 {[%clk 0:02:28.6]} 20... bxc6 {[%clk 0:02:17.4]} 21. dxc6 {[%clk
0:02:30.5]} 21... Nf6 {[%clk 0:02:10.8]} 22. Qe2 {[%clk 0:02:29.1]} 22... Nxe4
{[%clk 0:01:29.2]} 23. Nxe4 {[%clk 0:02:29.5]} 23... d5 {[%clk 0:01:22.4]} 24.
Ng3 {[%clk 0:02:20.5]} 24... Bxb4 {[%clk 0:01:11.9]} 25. Rf1 {[%clk 0:02:16.7]}
25... e4 {[%clk 0:01:04.4]} 26. Qxa6 {[%clk 0:02:13.9]} 26... Bd6 {[%clk
0:00:52.3]} 27. Qb5 {[%clk 0:02:08.7]} 27... Qe6 {[%clk 0:00:26]} 28. a4 {[%clk
0:02:08.2]} 28... Kh8 {[%clk 0:00:24.2]} 29. a5 {[%clk 0:02:08.4]} 29... e3
{[%clk 0:00:16.5]} 30. fxe3 {[%clk 0:02:06.5]} 30... Qxe3+ {[%clk 0:00:18.3]}
31. Kh1 {[%clk 0:02:07.6]} 31... Rxf1+ {[%clk 0:00:15.4]} 32. Rxf1 {[%clk
0:02:08]} 32... Rxf1+ {[%clk 0:00:15.9]} 33. Qxf1 {[%clk 0:02:08.4]} 33... h6
{[%clk 0:00:13.7]} 34. a6 {[%clk 0:02:04.4]} 34... Qa3 {[%clk 0:00:07.6]} 35.
Nf5 {[%clk 0:02:02.1]} 35... Bc5 {[%clk 0:00:05.8]} 36. Nh4 {[%clk 0:01:57.6]}
36... d4 {[%clk 0:00:06]} 37. h3 {[%clk 0:01:58.1]} 37... d3 {[%clk 0:00:06.1]}
38. Ng6+ {[%clk 0:01:57.6]} 38... Kh7 {[%clk 0:00:06.8]} 39. Qf5 {[%clk
0:01:58.4]} 39... Qc1+ {[%clk 0:00:06.1]} 40. Kh2 {[%clk 0:01:58.8]} 40... Bd6+
{[%clk 0:00:07.1]} 41. Ne5+ {[%clk 0:01:52.1]} 41... Kg8 {[%clk 0:00:07.6]} 42.
Qe6+ {[%clk 0:01:47.4]} 42... Kh7 {[%clk 0:00:08.7]} 43. Qf5+ {[%clk 0:01:42.4]}
43... Kg8 {[%clk 0:00:09.6]} 44. a7 {[%clk 0:01:29.1]} 44... Qa1 {[%clk
0:00:10.1]} 45. Qe6+ {[%clk 0:00:37.3]} 45... Kh7 {[%clk 0:00:10.2]} 46. Qg6+
{[%clk 0:00:29.5]} 46... Kg8 {[%clk 0:00:08.2]} 47. Qe8+ {[%clk 0:00:17]} 47...
Kh7 {[%clk 0:00:09.4]} 48. Qg6+ {[%clk 0:00:17.2]} 48... Kg8 {[%clk 0:00:10.4]}
49. Qe8+ {[%clk 0:00:16.8]} 49... Kh7 {[%clk 0:00:11.3]} 50. Qg6+ {[%clk
0:00:14.4]} 1/2-1/2

[Event "*** Titled Tuesday Blitz"]
[Site "Chess.com"]
[Date "2020.01.07"]
[Round "9"]
[White "vovachesss"]
[Black "Atakishiyev04"]
[Result "1-0"]
[WhiteElo "2588"]
[BlackElo "2728"]
[TimeControl "180+2"]
[EndTime "15:08:42 PST"]
[Termination "vovachesss won by resignation"]

1. e4 {[%clk 0:03:01.9]} 1... e5 {[%clk 0:02:59.1]} 2. Nf3 {[%clk 0:03:02.9]}
2... Nc6 {[%clk 0:02:39.7]} 3. Bb5 {[%clk 0:03:03.5]} 3... a6 {[%clk 0:02:31.8]}
4. Bxc6 {[%clk 0:03:01.5]} 4... dxc6 {[%clk 0:02:33]} 5. O-O {[%clk 0:02:59.9]}
5... Qd6 {[%clk 0:02:34]} 6. d3 {[%clk 0:02:51.8]} 6... Ne7 {[%clk 0:02:22.6]}
7. Nbd2 {[%clk 0:02:49.6]} 7... b5 {[%clk 0:02:17.4]} 8. Nb3 {[%clk 0:02:41.5]}
8... Ng6 {[%clk 0:02:11.8]} 9. Be3 {[%clk 0:02:41.6]} 9... f6 {[%clk 0:02:00.9]}
10. Bc5 {[%clk 0:02:38]} 10... Qe6 {[%clk 0:02:00]} 11. Bxf8 {[%clk 0:01:42.8]}
11... Nxf8 {[%clk 0:02:01.9]} 12. Nc5 {[%clk 0:01:43.4]} 12... Qe7 {[%clk
0:01:59.8]} 13. b4 {[%clk 0:01:43.4]} 13... Ne6 {[%clk 0:02:01]} 14. d4 {[%clk
0:01:37]} 14... Nxc5 {[%clk 0:01:54.4]} 15. bxc5 {[%clk 0:01:16.5]} 15... Bg4
{[%clk 0:01:54.9]} 16. c3 {[%clk 0:01:13.8]} 16... Rd8 {[%clk 0:01:51.4]} 17.
Re1 {[%clk 0:01:00.2]} 17... O-O {[%clk 0:01:44.5]} 18. Qd3 {[%clk 0:00:49.7]}
18... Bxf3 {[%clk 0:01:26.6]} 19. gxf3 {[%clk 0:00:45.8]} 19... Qxc5 {[%clk
0:01:26.6]} 20. Red1 {[%clk 0:00:41.4]} 20... Qe7 {[%clk 0:01:22.4]} 21. a4
{[%clk 0:00:41.6]} 21... Rd6 {[%clk 0:01:09.2]} 22. axb5 {[%clk 0:00:39.6]}
22... cxb5 {[%clk 0:01:10]} 23. d5 {[%clk 0:00:40.8]} 23... Rfd8 {[%clk
0:01:08.6]} 24. c4 {[%clk 0:00:41.9]} 24... bxc4 {[%clk 0:01:00.4]} 25. Qxc4
{[%clk 0:00:42.9]} 25... c6 {[%clk 0:01:02]} 26. Rxa6 {[%clk 0:00:42.6]} 26...
cxd5 {[%clk 0:00:46.9]} 27. Rxd6 {[%clk 0:00:41.1]} 27... Rxd6 {[%clk
0:00:46.9]} 28. Rxd5 {[%clk 0:00:34.8]} 28... Rxd5 {[%clk 0:00:47.9]} 29. exd5
{[%clk 0:00:22.2]} 29... Kf8 {[%clk 0:00:40.2]} 30. Qc6 {[%clk 0:00:19.7]} 30...
Qd8 {[%clk 0:00:32.1]} 31. d6 {[%clk 0:00:19.2]} 31... h5 {[%clk 0:00:24]} 32.
h4 {[%clk 0:00:19.4]} 32... Kf7 {[%clk 0:00:21.2]} 33. Qc7+ {[%clk 0:00:09.5]}
33... Ke8 {[%clk 0:00:22.7]} 34. Qxg7 {[%clk 0:00:08.6]} 34... Qxd6 {[%clk
0:00:23.6]} 35. Qh8+ {[%clk 0:00:10.2]} 35... Ke7 {[%clk 0:00:24.7]} 36. Qxh5
{[%clk 0:00:12.1]} 36... Qd1+ {[%clk 0:00:25]} 37. Kg2 {[%clk 0:00:13.2]} 37...
Qd4 {[%clk 0:00:25.6]} 38. Qh7+ {[%clk 0:00:13.6]} 38... Ke6 {[%clk 0:00:26.1]}
39. Qg8+ {[%clk 0:00:13.8]} 39... Ke7 {[%clk 0:00:26.9]} 40. Qg7+ {[%clk
0:00:15.5]} 40... Ke8 {[%clk 0:00:06.9]} 41. Qxf6 {[%clk 0:00:15.9]} 41... Qd5
{[%clk 0:00:08.4]} 42. Kg3 {[%clk 0:00:15.1]} 42... Qd4 {[%clk 0:00:08.8]} 43.
Qg6+ {[%clk 0:00:14.9]} 43... Ke7 {[%clk 0:00:08.9]} 44. Qe4 {[%clk 0:00:15.8]}
44... Qa1 {[%clk 0:00:09.1]} 45. Kg2 {[%clk 0:00:15.8]} 45... Kf6 {[%clk
0:00:10.4]} 46. h5 {[%clk 0:00:14.7]} 46... Qc1 {[%clk 0:00:11.8]} 47. Qg6+
{[%clk 0:00:15.5]} 47... Ke7 {[%clk 0:00:13.4]} 48. h6 {[%clk 0:00:15.6]} 48...
Qf4 {[%clk 0:00:13.2]} 49. Qg7+ {[%clk 0:00:16.2]} 49... Ke6 {[%clk 0:00:13.5]}
50. h7 {[%clk 0:00:17.8]} 50... e4 {[%clk 0:00:14.7]} 51. Qg4+ {[%clk
0:00:19.2]} 1-0